bitfinex/quotes_ETHUSD_20250620
["timestamp","ask_amount","ask_price","bid_price","bid_amount"]
[1750436661316,7.4705664,2485.3,2485.2,4.02382102]
[1750436662250,7.8660316,2485.3,2485.2,4.02382102]
[1750436662456,7.4705664,2485.3,2485.2,4.02382102]
[1750436662655,7.4565664,2485.3,2485.2,4.02382102]
[1750436662956,0.2215664,2485.3,2485.2,5.63453656]
[1750436663136,0.2215664,2485.3,2485.2,5.69353656]
[1750436663338,0.2215664,2485.3,2485.2,5.65330124]
[1750436665446,0.2215664,2485.3,2485.2,5.59430124]
[1750436665623,0.2215664,2485.3,2485.2,5.63453059]
[1750436666118,0.2215664,2485.3,2485.2,6.24353059]
[1750436666453,0.2215664,2485.3,2485.2,5.59430124]
[1750436666640,0.2215664,2485.3,2485.2,5.65330124]
[1750436666953,0.2215664,2485.3,2485.2,6.24353155]
[1750436667153,0.2215664,2485.3,2485.2,6.24352503]
[1750436667354,0.1715664,2485.3,2485.2,6.24352503]
[1750436668057,0.1715664,2485.3,2485.2,6.20330124]
[1750436668421,0.1715664,2485.3,2485.2,15.39930124]
[1750436671934,0.1715664,2485.3,2485.2,15.38830124]
[1750436672227,0.1715664,2485.3,2485.2,4.02382102]
[1750436674366,0.1715664,2485.3,2485.2,4.06405329]
[1750436674564,0.1715664,2485.3,2485.2,4.61405329]
[1750436674863,0.1715664,2485.3,2485.2,4.63282102]
[1750436675065,0.1715664,2485.3,2485.2,5.43864756]
[1750436675372,0.1715664,2485.3,2485.2,7.06477493]
[1750436676150,0.1715664,2485.3,2485.2,16.24877493]
[1750436676560,0.1715664,2485.3,2485.2,26.24877493]
[1750436677161,0.1715664,2485.3,2485.2,26.24777493]
[1750436677767,0.1715664,2485.3,2485.2,26.24677493]
[1750436679048,0.1715664,2485.3,2485.2,17.06477493]
[1750436679243,0.1715664,2485.3,2485.2,26.24677493]
[1750436680091,0.1715664,2485.3,2485.2,16.24677493]
[1750436680393,0.1715664,2485.3,2485.2,26.24677493]
[1750436680683,0.1715664,2485.3,2485.2,36.71477493]
[1750436681049,0.1715664,2485.3,2485.2,37.05067651]
[1750436681633,0.0602,2486.9,2486.8,4.0212321]
[1750436681837,0.7797,2487.0,2486.9,4.0210704]
[1750436681838,0.8399,2487.0,2486.9,4.0210704]
[1750436682979,0.0602,2487.2,2487.1,4.02074705]
[1750436683688,7.199,2487.6,2487.1,4.02074705]
[1750436683689,0.2817664,2487.9,2487.1,0.80417608]
[1750436683848,0.7591,2487.7,2487.6,4.01985652]
[1750436684033,0.8193,2487.7,2487.6,4.01985652]
[1750436684238,0.7591,2487.7,2487.5,4.02004919]
[1750436684447,0.0602,2487.6,2487.5,4.02004919]
[1750436685191,0.0602,2487.6,2487.4,4.02025908]
[1750436685192,0.0602,2487.6,2487.4,4.02012123]
[1750436685340,12.8013,2487.7,2487.6,4.01993889]
[1750436685541,0.0602,2487.6,2487.5,4.02001736]
[1750436685855,0.0102,2487.6,2487.5,4.02001736]
[1750436687255,0.2215664,2487.9,2487.7,4.0197773]
[1750436687646,0.2215664,2487.9,2487.8,4.01961572]
[1750436688141,11.0523664,2487.9,2487.8,4.01961572]
[1750436688683,0.9921664,2487.9,2487.8,4.01961572]
[1750436688855,1.0523664,2487.9,2487.8,4.01961572]
[1750436689759,0.9921664,2487.9,2487.8,4.01961572]
[1750436690761,0.2215664,2487.9,2487.8,4.01961572]
[1750436690972,0.2817664,2487.9,2487.8,4.01961572]
[1750436691170,0.2215664,2487.9,2487.8,4.01961572]
[1750436691684,0.2817664,2487.9,2487.8,4.01961572]
[1750436692590,0.2817664,2487.9,2487.0,0.8914]
[1750436692591,1.0729664,2487.9,2487.0,0.8914]
[1750436692888,10.0,2487.6,2487.5,4.0201005]
[1750436693181,1.0127664,2487.9,2487.8,4.01961572]
[1750436693395,0.2215664,2487.9,2487.8,4.01961572]
[1750436694380,0.2215664,2487.9,2487.8,4.05980821]
[1750436694560,0.2215664,2487.9,2487.8,4.01961572]
[1750436694763,0.2215664,2487.9,2487.8,5.22554556]
[1750436694974,0.2215664,2487.9,2487.8,5.32563553]
[1750436695363,0.2215664,2487.9,2487.8,6.10743553]
[1750436696002,0.2215664,2487.9,2487.8,6.65743553]
[1750436696487,0.2215664,2487.9,2487.8,6.61724556]
[1750436697555,0.2215664,2487.9,2487.8,5.22554556]
[1750436700993,0.0602,2487.8,2487.6,4.01979269]
[1750436701292,10.0,2487.7,2487.6,4.01979269]
[1750436701487,17.2522,2487.7,2487.6,4.01979269]
[1750436701688,0.0602,2487.5,2486.7,4.02138981]
[1750436701855,0.0602,2487.3,2486.5,4.02162933]
[1750436702056,26.09628011,2487.3,2487.2,4.02046902]
[1750436702361,19.2222,2487.3,2487.2,4.02046902]
[1750436702891,10.0,2487.3,2487.2,4.02046902]
[1750436703093,10.0,2487.3,2487.2,4.82458831]
[1750436703094,17.192,2487.3,2487.2,4.82458831]
[1750436703980,0.2215664,2487.9,2487.8,4.01961572]
[1750436704180,7.4125664,2487.9,2487.8,4.01961572]
[1750436704376,17.4125664,2487.9,2487.8,4.01961572]
[1750436704575,0.2215664,2487.9,2487.8,4.01961572]
[1750436704785,0.2215664,2487.9,2487.8,4.61083711]
[1750436705170,0.2215664,2487.9,2487.8,4.67073711]
[1750436705575,0.2215664,2487.9,2487.8,4.71092564]
[1750436705890,0.2215664,2487.9,2487.8,5.26092564]
[1750436706086,0.2215664,2487.9,2487.8,7.23092564]
[1750436706667,0.2215664,2487.9,2487.8,31.25667276]
[1750436707018,0.2215664,2487.9,2487.8,32.01048423]
[1750436708599,0.2215664,2487.9,2487.8,39.60149973]
[1750436709372,0.2215664,2487.9,2487.8,30.44149973]
[1750436709580,0.2215664,2487.9,2487.8,39.60149973]
[1750436710821,0.2215664,2487.9,2487.8,30.44149973]
[1750436711019,0.2215664,2487.9,2487.8,39.60049973]
[1750436711321,0.2215664,2487.9,2487.8,30.44149973]
[1750436711524,0.2215664,2487.9,2487.8,39.60049973]
[1750436711684,0.2215664,2487.9,2487.8,15.86575261]
[1750436712025,0.2215664,2487.9,2487.8,25.02475261]
[1750436712219,0.2215664,2487.9,2487.8,39.60049973]
[1750436713024,0.2215664,2487.9,2487.6,4.01993889]
[1750436713025,0.2215664,2487.9,2487.6,4.08123889]
[1750436713321,0.2215664,2487.9,2487.8,4.01961572]
[1750436713528,0.2830664,2487.9,2487.8,4.01961572]
[1750436714188,2.00347889,2487.9,2487.7,4.01969758]
[1750436714423,0.0615,2487.8,2486.9,4.02097683]
[1750436714598,0.0615,2487.7,2487.4,4.0201967]
[1750436714804,0.0615,2487.7,2487.6,4.01992588]
[1750436715400,0.0615,2487.7,2487.5,4.02005899]
[1750436715616,0.0615,2487.7,2487.6,4.01993889]
[1750436716204,1.0091664,2487.9,2487.8,4.01961572]
[1750436716405,0.2215664,2487.9,2487.8,4.0598062]
[1750436716830,0.2215664,2487.9,2487.8,5.88105844]
[1750436716995,0.2215664,2487.9,2487.8,5.77956796]
[1750436717631,0.2215664,2487.9,2487.8,4.56961572]
[1750436718394,0.2215664,2487.9,2487.8,4.60980126]
[1750436718790,0.2215664,2487.9,2487.8,4.67110126]
[1750436719022,0.2215664,2487.9,2487.8,4.56961572]
[1750436719208,0.2215664,2487.9,2487.8,4.01961572]
[1750436720524,0.2830664,2487.9,2487.8,4.01961572]
[1750436721404,1.1038664,2487.9,2487.8,4.01961572]
[1750436722217,0.2215664,2487.9,2487.8,4.01961572]
[1750436722440,0.2215664,2487.9,2487.8,4.86374375]
[1750436722621,0.2215664,2487.9,2487.8,4.82355502]
[1750436723394,0.2830664,2487.9,2487.8,4.01961572]
[1750436724020,0.2830664,2487.9,2487.8,4.05980782]
[1750436724433,0.2215664,2487.9,2487.8,4.05980782]
[1750436724629,0.2830664,2487.9,2487.8,4.01961572]
[1750436725010,0.2215664,2487.9,2487.8,4.01961572]
[1750436725206,0.2215664,2487.9,2487.8,4.05980772]
[1750436725611,0.2215664,2487.9,2487.8,4.01961572]
[1750436726598,0.2215664,2487.9,2487.8,4.05980686]
[1750436726805,0.2215664,2487.9,2487.8,4.01961572]
[1750436727006,0.2215664,2487.9,2487.8,4.05980559]
[1750436727206,0.2215664,2487.9,2487.8,4.01961572]
[1750436727406,0.2830664,2487.9,2487.8,4.01961572]
[1750436728014,0.2215664,2487.9,2487.8,4.01961572]
[1750436728733,0.2830664,2487.9,2487.8,4.01961572]
[1750436729111,0.2215664,2487.9,2487.8,4.01961572]
[1750436730624,0.2215664,2487.9,2487.8,4.05980447]
[1750436730825,0.2215664,2487.9,2487.8,4.01961572]
[1750436731028,0.2215664,2487.9,2487.8,5.21604723]
[1750436731215,0.2215664,2487.9,2487.8,12.40304723]
[1750436731415,0.2215664,2487.9,2487.8,12.36285948]
[1750436731843,0.0615,2489.1,2489.0,4.01767778]
[1750436732230,0.6543068,2489.5,2489.2,4.01722753]
[1750436732545,0.0615,2489.3,2488.5,0.55]
[1750436732750,0.0615,2489.3,2488.5,1.26479406]
[1750436732911,0.0615,2489.3,2489.2,4.01735497]
[1750436733762,10.0,2489.4,2489.1,4.01742302]
[1750436733946,0.0615,2489.3,2489.1,4.01742302]
[1750436734139,10.0,2489.4,2489.2,4.01731729]
[1750436734469,10.0,2489.7,2489.0,4.01767106]
[1750436734763,0.0615,2489.7,2489.6,4.01670951]
[1750436734964,7.185,2489.7,2489.5,4.01684913]
[1750436735172,10.0615,2489.6,2489.4,4.01695892]
[1750436735479,10.0615,2489.6,2488.8,4.01800064]
[1750436735480,23.01932923,2489.6,2488.8,4.01800064]
[1750436735765,23.01932923,2489.6,2488.5,4.73327408]
[1750436735766,10.0615,2489.1,2489.0,4.0176476]
[1750436735971,0.0615,2489.1,2489.0,4.0176476]
[1750436736265,0.0615,2488.9,2488.6,4.01832293]
[1750436736470,0.0615,2488.8,2488.4,4.01864023]
[1750436736639,0.0615,2488.8,2487.8,0.54494376]
[1750436736844,0.0615,2488.8,2488.4,4.01863942]
[1750436737164,0.0615,2488.7,2488.3,4.01872616]
[1750436737365,14.94027957,2488.7,2488.2,4.01888446]
[1750436737570,14.94027957,2488.7,2488.3,4.01871303]
[1750436737571,0.0615,2488.5,2488.3,4.01871303]
[1750436737733,7.2455,2488.4,2488.2,4.01889495]
[1750436737938,7.2455,2488.4,2488.3,4.01880802]
[1750436738138,7.184,2488.4,2488.2,4.01887702]
[1750436738333,7.184,2488.4,2488.1,4.01907094]
[1750436738539,0.0612,2488.3,2488.2,4.01889631]
[1750436738938,0.0612,2488.3,2488.2,4.35439289]
[1750436739473,40.0,2488.8,2488.4,4.01852719]
[1750436739659,7.22433299,2488.7,2488.4,4.01852719]
[1750436739862,17.22433299,2488.7,2488.3,4.01870128]
[1750436740167,10.0612,2488.5,2488.2,0.33549658]
[1750436740468,0.0612,2488.3,2488.2,0.33549658]
[1750436740639,0.0612,2488.3,2488.2,4.01896953]
[1750436740829,10.88178275,2488.6,2488.1,4.01912195]
[1750436740830,10.0612,2488.6,2488.5,4.01844925]
[1750436741030,10.0,2488.9,2488.6,4.01825333]
[1750436741268,7.183,2488.8,2488.6,4.01819269]
[1750436741577,0.0612,2489.2,2488.9,4.01769831]
[1750436741864,17.2442,2489.1,2489.0,4.01761091]
[1750436742065,10.88178275,2489.4,2489.0,4.01761091]
[1750436742267,7.183,2489.6,2489.5,4.01687085]
[1750436742481,0.0612,2490.0,2489.1,4.01749328]
[1750436742665,0.0612,2490.0,2489.9,4.01622555]
[1750436742842,10.0612,2490.0,2489.9,4.01622555]
[1750436743042,17.183,2490.0,2489.9,4.01622555]
[1750436743251,10.0,2489.9,2489.5,4.01687085]
[1750436743590,7.183,2490.0,2489.7,4.0164884]
[1750436743789,0.0612,2489.6,2489.5,4.01687085]
[1750436744080,7.181,2489.6,2489.5,4.01687085]
[1750436744605,0.0612,2490.1,2489.9,4.01622555]
[1750436744883,7.181,2490.0,2489.9,4.01622555]
[1750436745038,0.0612,2490.2,2490.0,4.01599157]
[1750436745243,0.0612,2490.2,2489.2,4.07912824]
[1750436745244,17.181,2490.1,2489.8,0.7598]
[1750436745468,17.181,2490.1,2489.9,4.01619854]
[1750436745673,17.181,2490.1,2490.0,4.01606425]
[1750436746196,17.181,2490.1,2489.8,0.7598]
[1750436746366,0.0612,2490.0,2489.8,4.01636244]
[1750436746754,0.0612,2489.9,2489.7,4.01651893]
[1750436746950,11.16454915,2490.4,2490.1,4.01581887]
[1750436747295,10.0,2490.3,2490.2,4.0157417]
[1750436747452,17.18,2490.3,2490.2,4.0157417]
[1750436747959,10.0,2490.3,2490.2,4.0157417]
[1750436748158,17.18,2490.3,2490.2,4.0157417]
[1750436748369,17.179,2490.3,2490.2,4.0157417]
[1750436748997,10.0,2490.2,2489.9,0.7598]
[1750436749302,0.0612,2490.2,2490.1,4.01574531]
[1750436750602,7.179,2490.3,2490.1,4.01574531]
[1750436750772,7.2402,2490.3,2490.1,4.01574531]
[1750436751167,10.87063299,2490.2,2489.4,0.7648]
[1750436751373,0.0612,2490.1,2490.0,4.01606425]
[1750436752003,0.0612,2490.1,2489.5,4.01684897]
[1750436752207,0.2215664,2490.4,2490.3,4.78038045]
[1750436752408,0.2215664,2490.4,2490.3,5.66000879]
[1750436752712,0.2215664,2490.4,2490.3,4.78038045]
[1750436753004,0.2215664,2490.4,2490.3,4.88232999]
[1750436753186,0.2215664,2490.4,2490.3,4.84218045]
[1750436753995,0.2215664,2490.4,2490.3,4.78038045]
[1750436754380,0.2215664,2490.4,2490.3,4.82053132]
[1750436754629,0.2215664,2490.4,2490.3,6.27580465]
[1750436755811,0.2215664,2490.4,2490.3,6.31595067]
[1750436756176,0.2215664,2490.4,2490.3,6.27580465]
[1750436756816,0.2215664,2490.4,2490.3,4.78038045]
[1750436756991,7.3965664,2490.4,2490.3,4.78038045]
[1750436757190,0.2215664,2490.4,2490.3,4.78038045]
[1750436757903,0.2215664,2490.4,2490.3,4.01558045]
[1750436758098,0.2215664,2490.4,2490.3,4.05573371]
[1750436758298,0.2215664,2490.4,2490.3,4.86287815]
[1750436758510,0.2215664,2490.4,2490.3,4.80308045]
[1750436758714,0.2215664,2490.4,2490.3,4.01558045]
[1750436759280,0.2215664,2490.4,2490.3,4.05573043]
[1750436759486,0.2215664,2490.4,2490.3,4.86303043]
[1750436759701,0.2215664,2490.4,2490.3,4.82288045]
[1750436760112,0.2215664,2490.4,2490.3,4.86303048]
[1750436760287,0.2215664,2490.4,2490.3,5.75090462]
[1750436760487,0.2215664,2490.4,2490.3,5.71075457]
[1750436761087,0.2215664,2490.4,2490.3,5.77255457]
[1750436761282,0.2215664,2490.4,2490.3,5.81270368]
[1750436761514,0.2215664,2490.4,2490.3,5.77255457]
[1750436761703,0.2215664,2490.4,2490.3,4.82288045]
[1750436762686,0.2215664,2490.4,2490.3,5.47482936]
[1750436762895,0.2215664,2490.4,2490.3,7.39668045]
[1750436763087,0.2215664,2490.4,2490.3,7.43682305]
[1750436763506,0.2215664,2490.4,2490.3,7.39668045]
[1750436763712,0.2215664,2490.4,2490.3,9.29525853]
[1750436763905,0.2215664,2490.4,2490.3,9.25511957]
[1750436764111,0.2215664,2490.4,2490.3,7.29311957]
[1750436764312,0.2215664,2490.4,2490.3,16.42711957]
[1750436764900,0.2215664,2490.4,2490.3,7.29311957]
[1750436765609,0.2215664,2490.4,2490.3,7.23131957]
[1750436766023,0.2215664,2490.4,2490.3,7.29311957]
[1750436766190,0.2215664,2490.4,2490.3,7.23131957]
[1750436766389,0.2215664,2490.4,2490.3,7.33326521]
[1750436766600,0.2215664,2490.4,2490.3,7.29311957]
[1750436766799,0.2215664,2490.4,2490.3,9.25511957]
[1750436769327,0.0578,2491.7,2491.6,4.01348531]
[1750436769903,0.8121,2491.8,2491.7,4.01332423]
[1750436770343,13.9309601,2492.3,2491.7,4.01332423]
[1750436770344,0.8407,2492.0,2491.9,4.01300212]
[1750436770825,0.0578,2492.3,2492.2,4.01251905]
[1750436771236,0.8522,2492.3,2492.2,4.01251905]
[1750436771430,0.8522,2492.3,2492.1,4.01264656]
[1750436771631,0.83473299,2492.3,2492.0,4.01275137]
[1750436771800,0.0578,2492.2,2492.1,4.01268006]
[1750436772203,0.7944,2492.3,2492.2,4.01251905]
[1750436772434,8.0192,2492.3,2492.2,4.01251905]
[1750436772731,18.0192,2492.3,2492.2,4.01251905]
[1750436773411,0.0578,2492.2,2492.1,4.01259779]
[1750436773813,0.0578,2492.1,2491.9,4.01292778]
[1750436774022,10.0,2492.2,2492.0,4.01284109]
[1750436774220,0.0578,2492.1,2492.0,4.01284109]
[1750436774422,0.0578,2492.1,2491.9,4.01291014]
[1750436774734,0.0578,2492.1,2492.0,4.01284109]
[1750436776039,0.7944,2492.3,2492.2,4.01251905]
[1750436776258,0.0578,2492.1,2491.8,4.01302085]
[1750436776437,0.09813299,2492.1,2491.5,4.01364288]
[1750436776601,10.0,2492.2,2491.9,4.01291721]
[1750436776801,10.0,2492.2,2491.5,4.49745717]
[1750436777053,0.04033299,2492.1,2491.8,4.01301889]
[1750436777345,0.0578,2491.8,2491.2,4.80265462]
[1750436777517,10.0,2491.7,2491.6,4.01348531]
[1750436777721,10.0578,2491.7,2491.6,4.01348531]
[1750436778844,7.163,2491.7,2491.6,4.01348531]
[1750436779044,17.163,2491.7,2491.6,4.01348531]
[1750436779643,7.163,2491.7,2491.6,4.01348531]
[1750436780752,0.8096,2492.1,2492.0,4.01284109]
[1750436781042,8.01293299,2492.1,2492.0,4.01284109]
[1750436781216,7.9726,2492.1,2492.0,4.01284109]
[1750436781417,7.9716,2492.1,2492.0,4.01284109]
[1750436782908,7.9138,2492.1,2492.0,4.01284109]
[1750436783131,17.9138,2492.1,2492.0,4.01284109]
[1750436783456,10.0,2492.1,2492.0,4.01284109]
[1750436783612,17.161,2492.1,2492.0,4.01284109]
[1750436784055,17.16,2492.1,2492.0,4.01284109]
[1750436784420,10.0,2492.1,2492.0,4.01284109]
[1750436784620,17.16,2492.1,2492.0,4.01284109]
[1750436785518,17.2178,2492.1,2492.0,4.01284109]
[1750436787052,17.16,2492.1,2492.0,4.01284109]
[1750436787457,17.9707,2492.1,2492.0,4.01284109]
[1750436787641,18.0285,2492.1,2492.0,4.01284109]
[1750436788141,17.16,2492.1,2492.0,4.01284109]
[1750436788338,10.0,2492.0,2491.6,0.7754]
[1750436788538,7.2178,2492.1,2492.0,4.01284109]
[1750436788731,7.16,2492.1,2492.0,4.01284109]
[1750436791627,7.2178,2492.1,2492.0,4.01284109]
[1750436792126,18.0071,2492.1,2492.0,4.01284109]
[1750436793422,17.9493,2492.1,2492.0,4.01284109]
[1750436793625,17.16,2492.1,2492.0,4.01284109]
[1750436794632,17.154,2492.1,2492.0,4.01284109]
[1750436796234,10.0,2492.1,2492.0,4.01284109]
[1750436796435,17.153,2492.1,2492.0,4.01284109]
[1750436799139,10.0,2492.1,2492.0,4.06964109]
[1750436799344,17.151,2492.1,2492.0,4.87790541]
[1750436799679,10.0,2492.1,2492.0,4.01284109]
[1750436806173,10.0,2492.0,2491.9,4.01300212]
[1750436806345,17.2068,2492.0,2491.9,4.01300212]
[1750436806545,17.74181262,2492.0,2491.7,4.01330612]
[1750436806750,10.0608,2491.8,2491.7,4.01330612]
[1750436806945,17.145,2491.8,2491.7,4.01330612]
[1750436807145,17.2058,2491.8,2491.7,4.01330612]
[1750436808179,17.145,2491.8,2491.7,4.01330612]
[1750436808387,4.01210971,2492.5,2492.1,4.01268006]
[1750436808388,0.0608,2492.2,2492.1,4.01268006]
[1750436808578,17.2048,2492.2,2492.1,4.01268006]
[1750436808779,17.80105378,2492.2,2492.1,4.01268006]
[1750436809541,17.74025378,2492.2,2492.1,4.01268006]
[1750436809743,31.66609224,2492.2,2491.9,4.01292761]
[1750436810045,0.0608,2492.0,2491.4,4.01380749]
[1750436810270,10.0608,2491.8,2491.1,0.0568]
[1750436810583,23.98657965,2491.6,2491.5,4.01355852]
[1750436810781,10.0,2491.6,2491.5,4.01355852]
[1750436810949,17.142,2491.6,2491.5,4.01355852]
[1750436811887,18.0182,2491.6,2491.5,4.01355852]
[1750436812073,10.0608,2491.5,2491.4,4.013747]
[1750436812270,10.0608,2491.5,2491.3,4.01382746]
[1750436812478,18.05853299,2491.4,2491.3,4.01382746]
[1750436812682,18.0182,2491.4,2491.3,4.01382746]
[1750436812982,10.0608,2491.3,2491.2,4.01400699]
[1750436813182,10.0,2491.2,2490.6,0.0568]
[1750436813486,18.05913299,2491.1,2491.0,4.01445202]
[1750436813785,18.0188,2491.1,2491.0,4.01445202]
[1750436816397,10.0,2491.0,2490.9,4.01451961]
[1750436816562,0.0608,2491.0,2490.9,4.01451961]
[1750436816763,0.10113299,2491.0,2490.9,4.01451961]
[1750436819794,0.04033299,2491.0,2490.9,4.01451961]
[1750436819997,0.10113299,2491.0,2490.9,4.01451961]
[1750436820294,10.0608,2490.9,2490.8,4.01468186]
[1750436820494,17.137,2490.9,2490.3,4.01554886]
[1750436820695,10.0608,2490.6,2490.4,4.01532666]
[1750436820997,0.8663,2490.4,2490.3,4.01558045]
[1750436821207,31.96941264,2490.4,2490.3,4.01558045]
[1750436821366,10.0608,2490.3,2490.2,4.01561199]
[1750436822213,0.8055,2490.2,2489.9,4.01615776]
[1750436822420,0.8055,2489.9,2489.8,4.01629308]
[1750436822569,18.04263299,2489.9,2489.3,4.01717445]
[1750436822902,18.04263299,2489.9,2489.8,4.01638685]
[1750436822903,10.8055,2489.9,2489.8,4.01638685]
[1750436823081,0.8055,2490.2,2490.1,4.01590297]
[1750436823401,7.136,2490.2,2490.1,4.01590297]
[1750436823613,0.8663,2490.4,2490.3,4.01558045]
[1750436823910,8.0013,2490.4,2490.3,4.01558045]
[1750436824273,8.0013,2490.4,2489.4,0.8573]
[1750436824274,0.8574,2490.3,2489.4,0.8573]
[1750436824479,10.0608,2490.1,2490.0,4.01591872]
[1750436824891,10.0,2490.1,2490.0,4.01591872]
[1750436825396,17.135,2490.1,2490.0,4.01591872]
[1750436826013,0.0608,2490.0,2489.9,4.01622555]
[1750436826214,0.0608,2489.9,2489.7,4.01644888]
[1750436826517,0.8574,2490.4,2489.9,4.01614727]
[1750436826679,10.0608,2490.2,2490.1,4.01581456]
[1750436826879,0.0608,2490.1,2489.8,4.0163442]
[1750436827083,0.0608,2489.8,2489.6,4.01661738]
[1750436827407,10.0608,2489.6,2489.5,4.01679689]
[1750436827581,23.98657965,2489.6,2488.9,0.8573]
[1750436827777,0.0608,2489.3,2489.2,4.01735497]
[1750436827981,8.04983299,2489.3,2489.2,4.01735497]
[1750436828181,8.0095,2489.3,2489.2,4.01735497]
[1750436828638,33.7159836,2489.3,2488.9,4.01772828]
[1750436828814,10.0,2488.9,2488.4,0.7631]
[1750436829131,10.0,2488.9,2488.7,4.01806965]
[1750436829425,17.1946,2488.8,2488.7,4.01806965]
[1750436830009,0.0616,2488.7,2488.6,4.01820184]
[1750436830211,10.8294,2488.6,2488.5,4.01838422]
[1750436830416,17.9624,2488.6,2488.5,4.01838422]
[1750436830686,17.9624,2488.6,2488.4,4.01857058]
[1750436831002,0.0616,2488.4,2488.3,4.01873239]
[1750436831292,17.1956,2488.4,2488.3,4.01873239]
[1750436832024,17.133,2488.4,2488.3,4.07703239]
[1750436832226,17.133,2488.4,2488.3,4.01873239]
[1750436833116,17.133,2488.4,2488.3,4.07703239]
[1750436833321,10.0,2488.4,2488.3,4.01873239]
[1750436833638,17.132,2488.4,2488.3,4.01873239]
[1750436834827,17.8896,2488.4,2488.3,4.01873239]
[1750436835028,17.132,2488.4,2488.3,4.01873239]
[1750436836028,17.132,2488.4,2488.3,4.87703239]
[1750436837802,17.132,2488.4,2488.3,4.01873239]
[1750436841649,17.1936,2488.4,2487.9,4.01943511]
[1750436841818,17.1936,2488.4,2488.2,4.01896953]
[1750436841819,10.04033299,2488.3,2488.2,4.01896953]
[1750436842015,10.0,2488.3,2488.2,4.01896953]
[1750436842347,4.36,2489.0,2488.7,4.01816209]
[1750436842348,0.8296,2488.8,2488.7,4.01816209]
[1750436842651,17.16833299,2488.8,2488.7,4.01816209]
[1750436842855,17.128,2488.8,2488.7,4.01816209]
[1750436843417,17.1896,2488.8,2488.7,4.01816209]
[1750436845650,17.128,2488.8,2488.7,4.01816209]
[1750436846524,17.126,2488.8,2488.7,4.81706209]
[1750436846729,10.0,2488.8,2488.7,4.81706209]
[1750436846917,7.125,2488.8,2488.7,4.87536209]
[1750436847122,0.40553953,2489.5,2489.4,4.01703221]
[1750436847316,1.949,2489.8,2489.7,4.01654817]
[1750436847548,7.124,2489.8,2489.7,4.01654817]
[1750436847850,17.52551986,2489.8,2489.7,4.01654817]
[1750436848359,7.52551986,2489.8,2489.7,4.01654817]
[1750436848516,10.04033299,2490.0,2489.7,4.01654817]
[1750436848852,0.7748,2490.1,2490.0,4.01606425]
[1750436849023,17.9594,2490.1,2490.0,4.01606425]
[1750436849454,7.9594,2490.1,2490.0,4.01606425]
[1750436849674,7.8978,2490.1,2490.0,4.01606425]
[1750436849948,49.1409,2490.3,2490.2,4.0157417]
[1750436850157,10.0,2490.2,2490.0,4.01601509]
[1750436850339,7.1836,2490.1,2489.6,4.01663786]
[1750436850541,7.122,2490.1,2489.8,4.01631454]
[1750436850857,7.122,2490.1,2489.7,4.01652346]
[1750436850858,0.0616,2490.0,2489.9,4.01622555]
[1750436851019,0.0616,2490.0,2489.3,0.7722]
[1750436851216,17.1826,2489.9,2489.8,4.01629248]
[1750436851824,17.121,2489.9,2489.8,4.01629248]
[1750436852233,17.12,2489.9,2489.8,4.01629248]
[1750436852443,17.12,2489.9,2489.8,4.07459248]
[1750436852842,17.12,2489.9,2489.8,4.96574526]
[1750436853154,10.0,2489.9,2489.8,4.96574526]
[1750436853319,17.118,2489.9,2489.8,4.96574526]
[1750436853517,10.0,2489.9,2489.8,4.96574526]
[1750436853719,17.118,2489.9,2489.8,4.96574526]
[1750436853923,0.7968,2490.5,2490.2,4.0157417]
[1750436854154,0.39822278,2490.5,2490.4,4.0154192]
[1750436854362,0.7968,2490.8,2490.7,4.01493556]
[1750436854534,18.13595898,2490.8,2490.7,4.01493556]
[1750436855053,18.13595898,2490.8,2490.5,4.01525798]
[1750436855054,10.0,2490.7,2490.5,4.01525798]
[1750436855241,17.116,2490.6,2490.5,4.01525798]
[1750436855820,17.116,2490.6,2490.4,4.01527977]
[1750436856019,17.1776,2490.6,2490.4,4.01527977]
[1750436856225,17.116,2490.6,2490.5,4.01525798]
[1750436857688,17.116,2490.6,2490.1,4.01579427]
[1750436857977,17.116,2490.6,2490.0,0.8204]
[1750436857978,0.10193299,2490.5,2490.4,4.0154192]
[1750436859444,0.0574,2490.3,2489.7,0.0583]
[1750436859646,10.0,2490.1,2489.7,0.0583]
[1750436859851,0.0574,2490.3,2490.2,4.0157417]
[1750436860049,7.1684,2490.3,2490.2,4.0157417]
[1750436861232,0.7968,2490.4,2490.3,4.01558045]
[1750436861448,17.11,2490.4,2490.3,4.01558045]
[1750436862568,17.11,2490.4,2490.3,3.01558045]
[1750436864471,18.14904856,2490.4,2490.3,4.01558045]
[1750436865043,18.09164856,2490.4,2490.3,4.01558045]
[1750436865265,10.98164856,2490.4,2490.3,4.01558045]
[1750436865581,18.08764856,2490.4,2490.3,4.01558045]
[1750436866172,17.106,2490.4,2490.2,4.01566181]
[1750436866440,0.04033299,2490.3,2490.2,4.01566181]
[1750436867036,0.04033299,2490.3,2490.2,4.0157417]
[1750436868178,10.0,2490.4,2490.3,4.01558045]
[1750436868492,17.104,2490.4,2490.3,4.01558045]
[1750436868691,17.104,2490.4,2490.2,4.01570295]
[1750436868842,0.04033299,2490.3,2490.2,4.01570295]
[1750436871443,10.0,2490.4,2490.3,4.01558045]
[1750436871650,17.1,2490.4,2490.3,4.01558045]
[1750436871918,17.1,2490.4,2490.2,4.01564385]
[1750436872211,0.04033299,2490.3,2490.2,4.01564385]
[1750436872768,0.04033299,2490.3,2490.1,4.01583028]
[1750436872993,10.0,2490.1,2489.8,4.01624396]
[1750436873302,23.92577965,2489.9,2489.7,4.01654817]
[1750436873475,17.13833299,2489.8,2489.7,4.01654817]
[1750436873644,17.098,2489.8,2489.7,4.01654817]
[1750436873846,17.097,2489.8,2489.7,4.01654817]
[1750436874167,17.097,2489.8,2489.7,4.7971428]
[1750436875255,17.097,2489.8,2489.7,4.07494817]
[1750436877870,16.997,2489.8,2489.7,4.07494817]
[1750436879052,9.9,2489.8,2489.7,4.88824817]
[1750436879257,16.994,2489.8,2489.7,4.88824817]
[1750436880411,7.094,2489.8,2489.7,4.88824817]
[1750436880714,10.0,2490.0,2489.9,4.07462555]
[1750436881005,17.093,2490.0,2489.9,4.07462555]
[1750436881359,17.093,2490.0,2489.9,4.01622555]
[1750436886397,10.0,2490.0,2489.9,4.89662555]
[1750436886702,17.086,2490.0,2489.9,4.89662555]
[1750436887197,10.0,2490.0,2489.9,4.89662555]
[1750436887363,17.085,2490.0,2489.9,4.89662555]